bitfinex/quotes_SOLUSD_20240808
["timestamp","ask_amount","ask_price","bid_price","bid_amount"]
[1723147032376,20.0,156.19,156.09,64.2638]
[1723147032749,20.0,156.19,156.11,6.4053]
[1723147032948,20.0,156.19,156.12,6.4052]
[1723147033153,20.0,156.19,156.11,22.4196]
[1723147033470,20.0,156.19,156.11,16.014]
[1723147033849,20.0,156.19,156.1,6.406]
[1723147034878,20.0,156.19,156.11,6.4056]
[1723147035393,20.0,156.19,156.11,28.85085427]
[1723147035543,20.9646,156.2,156.13,27.57]
[1723147035748,20.9646,156.2,156.14,1.28052015]
[1723147035944,20.9646,156.2,156.15,7.68431682]
[1723147036370,20.9646,156.2,156.15,6.4038]
[1723147036549,20.9646,156.2,156.14,16.011]
[1723147036749,20.0,156.19,156.14,16.011]
[1723147037064,20.0,156.19,156.14,22.4153]
[1723147038858,20.0,156.19,156.15,6.404]
[1723147039056,20.0,156.19,156.1,43.5845]
[1723147039249,20.0,156.19,156.1,44.8651894]
[1723147039463,20.0,156.19,156.11,27.57]
[1723147039756,20.0,156.19,156.12,6.405]
[1723147040377,21.155945,156.19,156.12,6.405]
[1723147043578,21.155945,156.19,156.13,6.4048]
[1723147043873,21.155945,156.19,156.12,6.4052]
[1723147044171,21.155945,156.19,156.14,6.4042]
[1723147044373,21.155945,156.19,156.13,27.57]
[1723147044557,21.155945,156.19,156.14,6.4043]
[1723147044876,21.155945,156.19,156.14,6.4044]
[1723147045371,21.155945,156.19,156.13,33.9748]
[1723147045577,21.155945,156.19,156.13,6.4048]
[1723147046072,21.155945,156.19,156.12,22.4179]
[1723147046273,21.155945,156.19,156.1,27.57]
[1723147046953,21.155945,156.19,156.13,6.4048]
[1723147047175,21.155945,156.19,156.12,6.4052]
[1723147047553,21.155945,156.19,156.1,43.5846]
[1723147047754,21.155945,156.19,156.13,6.4048]
[1723147048764,21.155945,156.19,156.14,16.0109]
[1723147048964,21.155945,156.19,156.1,32.0288]
[1723147048965,1.155945,156.19,156.18,6.4028]
[1723147049367,1.155945,156.19,156.18,7.68299888]
[1723147049564,1.155945,156.19,156.18,6.4028]
[1723147050087,1.155945,156.19,156.16,22.4123]
[1723147050657,1.155945,156.19,156.17,6.4032]
[1723147051361,1.155945,156.19,156.16,22.4125]
[1723147051681,1.155945,156.19,156.16,43.5789]
[1723147051885,1.155945,156.19,156.17,28.85032612]
[1723147052058,1.155945,156.19,156.17,1.28032612]
[1723147052373,1.155945,156.19,156.18,33.9728]
[1723147052571,1.155945,156.19,156.18,6.4028]
[1723147053563,1.155945,156.19,156.16,16.0089]
[1723147053963,1.155945,156.19,156.16,22.4123]
[1723147054592,1.155945,156.19,156.17,6.4032]
[1723147056879,1.155945,156.19,156.18,80.25315548]
[1723147057674,1.155945,156.19,156.18,100.49455548]
[1723147058377,1.155945,156.19,156.18,99.2142]
[1723147059493,1.155945,156.19,156.18,100.49412153]
[1723147059795,1.155945,156.19,156.18,99.2142]
[1723147059991,1.155945,156.19,156.18,100.49412119]
[1723147060294,1.155945,156.19,156.18,100.49409623]
[1723147061084,1.155945,156.19,156.18,99.2142]
[1723147061891,1.155945,156.19,156.18,100.49409133]
[1723147064187,1.155945,156.19,156.18,108.72259133]
[1723147066086,1.155945,156.19,156.18,148.72259133]
[1723147066466,20.7354,156.29,156.25,6.3997]
[1723147066694,2.55254114,156.32,156.26,7.6791083]
[1723147066996,28.3816,156.33,156.27,1.27948811]
[1723147067186,20.0,156.32,156.27,1.27948811]
[1723147067390,20.0,156.32,156.26,6.3995]
[1723147068187,20.0,156.32,156.25,6.3998]
[1723147068494,20.0,156.32,156.24,22.4005]
[1723147070598,20.0,156.32,156.25,6.3999]
[1723147071292,20.0,156.32,156.24,22.4005]
[1723147071498,20.0,156.32,156.23,6.4005]
[1723147072200,20.0,156.32,156.24,6.4003]
[1723147073075,20.0,156.32,156.25,6.3998]
[1723147073675,20.0,156.32,156.25,43.5697]
[1723147073903,20.0,156.32,156.27,6.3988]
[1723147074086,20.0,156.32,156.28,6.3987]
[1723147074283,22.88735477,156.33,156.29,6.3981]
[1723147074887,22.88735477,156.33,156.27,22.3964]
[1723147075197,22.88735477,156.33,156.28,6.3987]
[1723147075400,22.88735477,156.33,156.24,6.4003]
[1723147075587,20.0,156.32,156.25,6.3999]
[1723147075986,20.0,156.32,156.26,6.3995]
[1723147078710,20.0,156.32,156.22,43.5723]
[1723147079588,20.0,156.32,156.24,6.4001]
[1723147079785,20.0,156.32,156.25,6.3999]
[1723147079985,20.0,156.32,156.24,16.0008]
[1723147079986,28.3163,156.32,156.24,16.0008]
[1723147080496,28.3163,156.32,156.24,22.4011]
[1723147081310,28.3163,156.32,156.22,6.4009]
[1723147081481,28.3163,156.32,156.21,22.4047]
[1723147082175,28.3163,156.32,156.22,6.4011]
[1723147083582,3.2,156.29,156.22,6.4011]
[1723147085002,20.2578,156.28,156.21,22.4047]
[1723147085206,20.2578,156.28,156.21,16.0032]
[1723147085907,20.2578,156.28,156.22,6.4009]
[1723147086287,20.2578,156.28,156.23,16.0018]
[1723147086693,20.2578,156.28,156.24,6.4003]
[1723147086892,20.2578,156.28,156.23,22.4025]
[1723147087092,20.2578,156.28,156.24,6.4002]
[1723147088292,20.2578,156.28,156.23,16.0018]
[1723147089904,20.2578,156.28,156.23,22.4024]
[1723147090296,47.6487,156.32,156.23,16.0018]
[1723147090486,47.6487,156.32,156.26,6.3995]
[1723147090891,47.6487,156.32,156.25,6.3998]
[1723147091314,50.23592733,156.32,156.24,6.4003]
[1723147092214,50.23592733,156.32,156.23,22.4025]
[1723147092517,50.23592733,156.32,156.23,16.0018]
[1723147093014,50.23592733,156.32,156.22,6.4011]
[1723147093410,50.23592733,156.32,156.21,6.4015]
[1723147094411,50.23592733,156.32,156.17,43.5774]
[1723147094816,50.23592733,156.32,156.19,16.0056]
[1723147095009,50.23592733,156.32,156.21,6.4013]
[1723147096426,50.23592733,156.32,156.2,6.4019]
[1723147097824,50.23592733,156.32,156.21,6.4016]
[1723147097994,50.23592733,156.32,156.21,16.0038]
[1723147098333,50.23592733,156.32,156.22,6.4011]
[1723147098619,50.23592733,156.32,156.21,22.4053]
[1723147099298,50.23592733,156.32,156.21,16.0038]
[1723147099801,50.23592733,156.32,156.21,22.4053]
[1723147101009,50.23592733,156.32,156.22,6.4012]
[1723147101209,50.23592733,156.32,156.21,22.4052]
[1723147101514,50.23592733,156.32,156.21,16.0038]
[1723147101818,50.23592733,156.32,156.21,22.4054]
[1723147103030,50.23592733,156.32,156.22,6.401]
[1723147105814,50.23592733,156.32,156.21,22.4052]
[1723147108011,20.3033,156.3,156.15,22.4137]
[1723147108212,8.4817,156.22,156.07,8.3485]
[1723147108516,19.7144,156.21,156.08,6.4069]
[1723147108697,39.7144,156.21,156.06,18.9]
[1723147108894,39.7144,156.21,156.1,6.4061]
[1723147109427,39.7144,156.21,156.08,22.4235]
[1723147109997,39.7144,156.21,156.09,1.28087819]
[1723147110197,39.7144,156.21,156.08,59.6441]
[1723147110198,39.7144,156.21,156.12,16.0125]
[1723147110597,39.7144,156.21,156.03,2.3132]
[1723147110598,1.3438,156.2,156.03,2.3132]
[1723147110794,32.33431595,156.31,155.78,19.7409]
[1723147110795,20.0,156.12,155.78,19.7409]
[1723147111018,6.4161,155.86,155.74,8.91498367]
[1723147111198,6.4161,155.86,155.75,1.28309493]
[1723147111396,20.0,155.85,155.74,0.86858367]
[1723147112005,6.4203,155.76,155.74,0.86858367]
[1723147112208,20.0,155.75,155.74,0.86858367]
[1723147112622,65.0,155.75,155.74,0.86858367]
[1723147113403,65.0,155.75,155.74,8.367e-05]
[1723147114128,472.89913127,155.75,155.74,8.367e-05]
[1723147114640,479.5832848,155.75,155.74,8.367e-05]
[1723147115127,472.89913127,155.75,155.74,8.367e-05]
[1723147115310,472.89913127,155.75,155.69,0.99253705]
[1723147115311,6.4226,155.7,155.69,0.99253705]
[1723147115625,222.98923127,155.7,155.69,0.99253705]
[1723147116007,26.4226,155.7,155.69,0.99253705]
[1723147116727,26.4226,155.7,155.69,3.705e-05]
[1723147117327,71.4226,155.7,155.68,0.8156369]
[1723147117518,20.0,155.69,155.68,0.8156369]
[1723147120931,6.4226,155.7,155.68,0.8156369]
[1723147121146,16.0476,155.79,155.68,0.8156369]
[1723147121427,16.0476,155.79,155.68,42.9190369]
[1723147121428,6.4209,155.75,155.68,42.9190369]
[1723147121641,6.4199,155.77,155.71,35.68]
[1723147121931,6.4202,155.76,155.7,42.1025]
[1723147122229,16.0436,155.83,155.69,16.0571]
[1723147122230,16.0436,155.83,155.71,42.1019]
[1723147122539,16.0436,155.83,155.69,16.0571]
[1723147122707,6.4203,155.76,155.69,16.0571]
[1723147122913,6.4197,155.77,155.71,6.4221]
[1723147123114,16.0436,155.83,155.7,35.68]
[1723147123612,16.0436,155.83,155.69,51.7371]
[1723147123813,16.0436,155.83,155.7,35.68]
[1723147123814,6.4205,155.75,155.7,35.68]
[1723147124013,16.0436,155.83,155.69,51.7371]
[1723147124014,6.4209,155.74,155.69,51.7371]
[1723147124229,16.0436,155.83,155.7,35.68]
[1723147124444,16.0436,155.83,155.69,22.48]
[1723147125131,16.0436,155.83,155.7,36.96420347]
[1723147125309,20.0,155.84,155.73,35.68]
[1723147125505,6.4175,155.83,155.75,16.0507]
[1723147125729,36.0393,155.87,155.69,1.28376711]
[1723147125915,6.4193,155.78,155.71,51.7349]
[1723147126241,6.4181,155.81,155.75,6.4204]
[1723147126447,6.4173,155.83,155.75,52.1194]
[1723147126943,6.4183,155.81,155.75,22.8595]
[1723147127106,16.0393,155.87,155.75,16.4394]
[1723147127309,6.4181,155.81,155.75,22.8599]
[1723147127711,16.0393,155.87,155.76,1.283612]
[1723147127937,16.0352,155.91,155.77,36.96346792]
[1723147128154,16.0393,155.9,155.78,51.7275]
[1723147128438,16.0352,155.91,155.78,22.4665]
[1723147128439,6.4168,155.84,155.78,22.4665]
[1723147129047,6.4163,155.86,155.79,6.4188]
[1723147129354,20.0,155.85,155.78,16.0475]
[1723147129526,20.0,155.9,155.78,22.4667]
[1723147129729,20.0,155.9,155.78,16.0475]
[1723147130055,6.4156,155.87,155.8,6.4181]
[1723147130243,26.416,155.86,155.8,6.4181]
[1723147130445,6.416,155.86,155.8,6.4181]
[1723147130655,20.0,155.85,155.8,6.4181]
[1723147130821,20.0,155.85,155.78,51.7275]
[1723147131151,20.0,155.85,155.78,16.0475]
[1723147131323,6.4172,155.83,155.78,22.4667]
[1723147131524,20.0,155.82,155.78,22.4667]
[1723147132022,20.0,155.82,155.76,6.4199]
[1723147132250,20.0,155.88,155.75,0.3882]
[1723147132543,16.0408,155.86,155.75,0.3882]
[1723147132762,20.0,155.85,155.75,0.3882]
[1723147133081,6.4182,155.81,155.75,6.8083]
[1723147133262,20.0,155.8,155.75,6.8083]
[1723147134251,20.0,155.8,155.75,0.3882]
[1723147134455,20.0,155.85,155.75,0.3882]
[1723147134655,16.0434,155.83,155.75,0.3882]
[1723147134827,20.0,155.82,155.75,0.3882]
[1723147135028,6.4188,155.79,155.75,0.3882]
[1723147135227,20.0,155.96,155.78,35.68]
[1723147135427,16.038,155.88,155.75,52.1185]
[1723147135739,16.0378,155.89,155.77,16.0491]
[1723147136065,26.67973016,155.95,155.75,0.3882]
[1723147136066,16.0408,155.86,155.75,0.3882]
[1723147136225,16.0408,155.86,155.75,6.8086]
[1723147136429,16.0408,155.86,155.75,0.3882]
[1723147136638,6.4189,155.79,155.75,0.3882]
[1723147137337,20.0,155.78,155.75,0.3882]
[1723147137544,20.0,155.82,155.75,0.3882]
[1723147137749,16.0461,155.81,155.75,0.3882]
[1723147138048,6.4201,155.76,155.75,0.3882]
[1723147138250,26.4201,155.76,155.75,0.3882]
[1723147139348,20.0,155.76,155.75,0.3882]
[1723147139923,26.4201,155.76,155.75,0.3882]
[1723147140160,20.0,155.76,155.75,0.3882]
[1723147140458,26.4201,155.76,155.75,0.3882]
[1723147142827,6.4197,155.77,155.75,0.3882]
[1723147143033,6.4201,155.76,155.75,0.3882]
[1723147144250,26.4201,155.76,155.75,0.0001]
[1723147144545,32.8351,155.76,155.75,0.0001]
[1723147145443,46.4201,155.76,155.75,0.0001]
[1723147145759,52.8351,155.76,155.75,0.0001]
[1723147146132,52.8351,155.76,155.64,1.00945782]
[1723147146133,6.4246,155.65,155.64,1.00945782]
[1723147146337,20.0,155.65,155.64,1.00945782]
[1723147146641,26.4246,155.65,155.64,1.00945782]
[1723147146846,20.0,155.65,155.64,1.00945782]
[1723147147281,26.4246,155.65,155.64,1.00945782]
[1723147148344,42.4862,155.65,155.64,1.00945782]
[1723147148538,26.4246,155.65,155.64,1.00945782]
[1723147150159,16.0657,155.62,155.59,0.0293786]
[1723147150363,6.4275,155.59,155.53,8.28843627]
[1723147150579,20.104416,155.58,155.53,1.85893627]
[1723147150737,6.4288,155.55,155.53,1.85893627]
[1723147151068,6.4284,155.56,155.53,1.85893627]
[1723147151234,20.104416,155.55,155.53,1.85893627]
[1723147151631,26.533216,155.55,155.53,1.85893627]
[1723147151867,6.4292,155.54,155.53,1.85893627]
[1723147152279,6.4292,155.54,155.49,14.9455]
[1723147152280,6.4312,155.49,155.48,1.06022015]
[1723147152467,16.0759,155.52,155.42,24.0135]
[1723147152660,6.4317,155.48,155.43,7.51044092]
[1723147152856,20.0,155.51,155.45,16.0818]
[1723147153051,0.104416,155.47,155.45,16.0818]
[1723147153255,0.104416,155.47,155.43,1.07714092]
[1723147153675,0.104416,155.47,155.44,16.0826]
[1723147153878,0.104416,155.47,155.43,1.07714092]
[1723147154187,6.536516,155.47,155.43,1.07714092]
[1723147154482,20.0,155.46,155.43,7.51084092]
[1723147154774,0.104416,155.45,155.43,7.51084092]
[1723147154976,0.104416,155.45,155.43,1.07714092]
[1723147155568,0.104416,155.45,155.43,7.51084092]
[1723147155965,0.104416,155.45,155.43,1.07714092]
[1723147156161,0.104416,155.45,155.44,6.4333]
[1723147156367,20.0,155.51,155.43,1.07714092]
[1723147156579,6.4308,155.5,155.45,22.5141]
[1723147156881,6.71720821,155.6,155.46,35.68]
[1723147157071,6.4295,155.54,155.49,6.4312]
[1723147157274,6.4288,155.55,155.49,16.0773]
[1723147157576,16.0763,155.62,155.52,6.4297]
[1723147157769,16.0661,155.61,155.51,22.5058]
[1723147157967,16.0661,155.61,155.5,6.4308]
[1723147158167,6.4288,155.55,155.48,16.0788]
[1723147158486,6.4288,155.55,155.5,6.4307]
[1723147158681,20.0,155.54,155.5,6.4307]
[1723147158982,20.0,155.54,155.48,16.0788]
[1723147159290,20.0,155.58,155.49,6.4312]
[1723147159462,20.0,155.58,155.48,16.0788]
[1723147159668,6.4287,155.56,155.5,16.0764]
[1723147159986,6.4288,155.55,155.5,22.5071]
[1723147160161,6.4284,155.56,155.51,6.4303]
[1723147160361,6.428,155.57,155.52,6.43]
[1723147160556,16.0763,155.62,155.53,6.4294]
[1723147160557,6.4276,155.58,155.53,6.4294]
[1723147160977,16.0641,155.63,155.51,20.4728]
[1723147161197,20.0,155.62,155.54,22.5013]
[1723147161369,16.0641,155.63,155.55,6.4287]
[1723147161568,32.1282,155.63,155.54,16.0722]
[1723147162186,16.0641,155.63,155.54,51.7522]
[1723147162386,6.4264,155.61,155.56,6.428]
[1723147162564,16.061,155.66,155.56,22.4983]
[1723147162772,18.72056371,155.66,155.57,6.4279]
[1723147162971,20.0,155.72,155.57,6.4279]
[1723147162972,6.4256,155.63,155.58,16.068]
[1723147163281,16.0579,155.69,155.59,6.427]
[1723147163586,16.0603,155.67,155.58,16.068]
[1723147163969,6.4261,155.62,155.58,22.4954]
[1723147164268,16.0566,155.7,155.59,6.427]
[1723147164467,16.0566,155.7,155.6,6.4265]
[1723147164887,22.56726288,155.71,155.61,6.4262]
[1723147165080,6.4237,155.68,155.63,6.4251]
[1723147165286,6.4237,155.68,155.55,32.1434]
[1723147165287,6.4222,155.71,155.62,21.7743]
[1723147165470,22.567263,155.74,155.67,6.4238]
[1723147165788,6.4222,155.71,155.65,51.7414]
[1723147165988,2.63072701,155.78,155.65,51.7414]
[1723147165989,22.567263,155.81,155.65,51.7414]
[1723147166286,22.567263,155.81,155.69,35.68]
[1723147166480,22.567263,155.81,155.63,40.7267]
[1723147166481,2.58238525,155.83,155.73,16.0525]
[1723147166687,1.0707,155.89,155.74,20.0304]
[1723147166867,10.39755276,155.89,155.74,20.0304]
[1723147167062,6.4185,155.8,155.75,6.4201]
[1723147167498,6.4189,155.79,155.74,35.0981]
[1723147168207,6.4156,155.87,155.82,6.4176]
[1723147168507,6.4168,155.84,155.79,22.4659]
[1723147168668,6.4167,155.85,155.79,22.4658]
[1723147168865,6.4167,155.85,155.8,6.4182]
[1723147169098,10.419011,155.88,155.81,16.0442]
[1723147169399,3.3787454,155.92,155.81,16.0442]
[1723147169400,0.8156369,155.92,155.81,16.0442]
[1723147169687,0.8156369,155.92,155.74,28.6772]
[1723147169688,0.8156369,155.92,155.83,16.0421]
[1723147169897,6.414,155.91,155.84,1.28300649]
[1723147170072,0.8156369,155.92,155.83,16.0421]
[1723147170385,6.4164,155.85,155.79,22.465]
[1723147170609,6.4154,155.88,155.82,6.4175]
[1723147170769,6.4147,155.89,155.82,16.0441]
[1723147170965,0.8156369,155.92,155.82,22.4616]
[1723147171164,0.8156369,155.92,155.82,22.4617]
[1723147171393,0.8156369,155.92,155.82,23.74470575]
[1723147171570,0.8156369,155.92,155.85,16.0403]
[1723147171778,0.8156369,155.92,155.76,43.53]
[1723147171779,6.4149,155.89,155.8,43.53]
[1723147171981,6.4149,155.89,155.83,6.417]
[1723147172285,6.4149,155.89,155.81,16.0443]
[1723147172286,6.4148,155.89,155.84,6.4167]
[1723147172473,6.4147,155.9,155.85,6.4163]
[1723147172669,0.8156369,155.92,155.82,43.53]
[1723147172882,0.8156369,155.92,155.86,22.4555]
[1723147172883,6.4141,155.91,155.86,22.4555]
[1723147173083,0.8156369,155.92,155.83,8.3997]
[1723147173293,6.4147,155.9,155.84,6.4167]
[1723147173592,0.8156369,155.92,155.83,8.3997]
[1723147173782,6.4152,155.88,155.83,8.3997]
[1723147173975,0.8156369,155.92,155.85,6.4164]
[1723147174375,0.8156369,155.92,155.83,8.3997]
[1723147174579,6.4151,155.89,155.84,6.4168]
[1723147174777,20.0,155.88,155.84,6.4168]
[1723147175177,6.4151,155.89,155.84,6.4168]
[1723147175389,20.0,155.88,155.84,6.4168]
[1723147175567,20.0,155.89,155.83,8.3997]
[1723147175772,20.8156369,155.92,155.83,8.3997]
[1723147175976,0.8156369,155.92,155.86,6.4159]
[1723147176176,0.8156369,155.92,155.87,16.039]
[1723147176476,27.2292369,155.92,155.87,16.039]
[1723147176676,0.8156369,155.92,155.87,16.039]
[1723147176978,0.8156369,155.92,155.91,6.4139]
[1723147177183,0.8156369,155.92,155.9,16.0359]
[1723147177480,0.8156369,155.92,155.9,22.45]
[1723147177680,0.8156369,155.92,155.9,16.0359]
[1723147179514,0.8156369,155.92,155.9,22.4502]
[1723147180372,0.8156369,155.92,155.88,44.81245628]
[1723147180611,0.8156369,155.92,155.86,16.039]
[1723147180802,0.8156369,155.92,155.87,6.4155]
[1723147180985,0.8156369,155.92,155.86,16.039]
[1723147181184,0.8156369,155.92,155.86,59.569]
[1723147181419,0.8156369,155.92,155.91,6.4139]
[1723147181587,16.0229,156.03,155.91,1.28221114]
[1723147181775,0.4512,156.12,155.85,20.5752]
[1723147181776,16.0277,155.98,155.88,43.53]
[1723147181974,16.0229,156.04,155.88,43.53]
[1723147182477,6.4123,155.96,155.88,16.0373]
[1723147182691,16.0247,156.01,155.88,16.0373]
[1723147182891,16.0229,156.04,155.88,16.0373]
[1723147182892,16.0276,155.99,155.88,16.0373]
[1723147183094,20.0,155.98,155.88,16.0373]
[1723147183399,16.0295,155.97,155.85,20.5752]
[1723147183579,6.4144,155.9,155.85,20.5752]
[1723147183779,36.0285,155.98,155.85,20.5752]
[1723147184007,6.4139,155.92,155.86,6.4159]
[1723147184478,36.0285,155.98,155.87,16.0389]
[1723147184679,6.4128,155.94,155.89,6.4144]
[1723147184887,20.0,155.98,155.87,16.0389]
[1723147185084,16.0275,155.99,155.87,16.0389]
[1723147185306,20.0,155.98,155.87,16.0389]
[1723147185510,6.4131,155.93,155.88,6.4151]
[1723147186190,16.0295,155.97,155.87,16.0389]
[1723147186394,20.0,155.96,155.87,6.4155]
[1723147186587,20.0,155.96,155.88,6.4151]
[1723147186790,20.0,155.96,155.85,20.5752]
[1723147187023,20.0,155.99,155.86,43.53]
[1723147187201,6.4094,156.02,155.97,6.4114]
[1723147187506,16.0195,156.06,155.94,16.0317]
[1723147187701,32.0424,156.06,155.94,16.0317]
[1723147187887,16.0229,156.06,155.96,16.0288]
[1723147188083,17.2136,156.1,155.96,37.769]
[1723147188283,6.4082,156.05,156.0,6.4102]
[1723147188488,16.0163,156.1,156.01,7.69130818]
[1723147188705,16.0163,156.1,156.0,6.4102]
[1723147188908,6.4082,156.07,156.0,6.4102]
[1723147189199,18.58203222,156.1,156.0,16.0248]
[1723147189380,6.4081,156.06,156.0,22.4346]
[1723147189781,2.56573222,156.1,156.02,16.0227]
[1723147189987,6.4065,156.1,156.04,6.4085]
[1723147190298,20.0,156.33,156.04,6.4085]
[1723147190299,16.009,156.17,156.05,24.0328]
[1723147191292,6.4054,156.12,156.06,6.4073]
[1723147191599,16.0114,156.14,156.05,8.0124]
[1723147191806,6.4065,156.09,156.05,8.0124]
[1723147192203,6.4066,156.09,156.05,8.0124]
[1723147192505,20.0,156.13,156.05,8.0124]
[1723147192698,7.2229369,156.08,156.02,6.4093]
[1723147192908,0.8156369,156.08,156.03,6.4088]
[1723147193204,0.8156369,156.08,156.01,51.5438]
[1723147193594,0.8156369,156.08,156.04,16.0214]
[1723147193803,0.8156369,156.08,156.06,6.4077]
[1723147194394,0.8156369,156.08,156.04,51.5414]
[1723147194594,0.8156369,156.08,156.06,6.4074]
[1723147194886,0.8156369,156.08,156.07,6.4073]
[1723147195691,0.8156369,156.08,156.04,16.0214]
[1723147196101,0.8156369,156.08,156.02,35.52]
[1723147196512,0.8156369,156.08,156.07,0.1792]
[1723147196817,0.8156369,156.08,156.07,0.4032]
[1723147197205,0.8156369,156.08,156.02,29.8535]
[1723147197397,0.8156369,156.08,156.02,35.52]
[1723147198416,0.8156369,156.08,156.05,6.4081]
[1723147198721,0.8156369,156.08,156.04,6.4085]
[1723147199094,0.8156369,156.08,156.03,22.4314]
[1723147199308,0.8156369,156.08,156.04,6.4086]
[1723147199594,0.8156369,156.08,156.05,6.4081]
[1723147199801,0.8156369,156.08,156.03,16.0225]
[1723147200095,0.8156369,156.08,156.04,6.4082]
[1723147200304,0.8156369,156.08,156.05,6.4079]
[1723147200894,0.8156369,156.08,156.06,6.4075]
[1723147201192,0.8156369,156.08,156.06,16.0189]
[1723147201391,0.8156369,156.08,156.02,16.0226]
[1723147201594,0.8156369,156.08,156.0,43.5324]
[1723147201898,6.4074,156.07,156.02,6.4093]
[1723147202301,16.8331369,156.08,156.0,8.0124]
[1723147202521,20.0,156.07,155.96,21.7402]
[1723147202713,0.8156369,156.08,155.97,35.52]
[1723147203015,6.4078,156.06,156.01,6.4098]
[1723147203214,6.4078,156.06,155.96,23.02191535]
[1723147203215,20.0,156.05,155.96,21.7402]
[1723147203600,20.0,156.05,155.97,16.0278]
[1723147203797,6.4082,156.05,156.0,6.41]
[1723147204013,26.4086,156.04,155.97,16.0278]
[1723147204205,6.4082,156.05,156.0,6.4098]
[1723147204402,20.0,156.06,155.99,16.0258]
[1723147204603,0.8156369,156.08,155.99,51.5458]
[1723147204801,0.8156369,156.08,155.99,16.0258]
[1723147205204,16.8338369,156.08,155.96,37.7696]
[1723147205504,6.4107,155.99,155.96,21.7402]
[1723147205831,20.0,156.06,155.9,28.1835]
[1723147205999,6.4127,155.94,155.89,6.4143]
[1723147206194,32.0482,156.02,155.85,27.708]
[1723147206416,6.4127,155.94,155.89,6.4147]
[1723147206915,6.4123,155.95,155.9,6.4142]
[1723147207097,6.411,155.98,155.85,59.7892]
[1723147207301,20.0,155.97,155.9,16.0357]
[1723147207502,6.4127,155.94,155.9,16.0357]
[1723147207714,6.4127,155.94,155.86,35.52]
[1723147207715,6.4133,155.93,155.86,16.0391]
[1723147207905,20.0,155.97,155.9,6.414]
[1723147208108,20.0,155.98,155.89,35.52]
[1723147208298,32.0399,156.06,155.94,35.52]
[1723147208299,16.0204,156.06,155.94,35.52]
[1723147208507,1.4947,156.1,155.97,16.0277]
[1723147208508,6.4085,156.05,155.97,16.0277]
[1723147209019,16.0162,156.1,155.99,51.5459]
[1723147209222,6.4074,156.07,156.02,6.4093]
[1723147209417,6.4074,156.07,156.01,16.0239]
[1723147209720,16.0186,156.07,155.98,22.4385]
[1723147209929,16.0219,156.04,155.92,43.45]
[1723147210102,6.4111,155.98,155.92,16.0335]
[1723147210303,6.4126,155.95,155.9,29.8494]
[1723147210527,6.4145,155.9,155.85,6.4162]
[1723147210702,16.0331,155.93,155.84,29.8494]
[1723147211022,6.4159,155.87,155.84,29.8494]
[1723147211322,6.4146,155.9,155.84,45.8907]
[1723147211496,6.4127,155.94,155.89,6.4146]
[1723147211700,4.10978263,156.06,155.9,6.4141]
[1723147211701,20.0,155.93,155.9,6.4141]
[1723147211926,16.0269,155.99,155.88,16.0372]
[1723147212106,6.4119,155.96,155.91,6.4138]
[1723147212306,20.0,155.98,155.9,16.0352]
[1723147212512,20.0,155.98,155.88,43.45]
[1723147212720,6.4134,155.93,155.86,32.0792]
[1723147212904,20.0,155.98,155.86,32.0792]
[1723147213105,6.4127,155.94,155.9,6.4143]
[1723147213319,20.0,156.04,155.89,16.0368]
[1723147213521,6.4132,155.93,155.89,16.0368]
[1723147213822,6.4135,155.92,155.87,6.4155]
[1723147214028,16.026,156.0,155.9,6.4143]
[1723147214324,16.0284,155.98,155.88,16.0372]